bitfinex/quotes_SOLUSD_20220307
["timestamp","ask_amount","ask_price","bid_price","bid_amount"]
[1646644868605,55.4703957,82.679,82.61,6.05]
[1646644869106,1.6291134,82.675,82.61,6.05]
[1646644869305,1.6291134,82.672,82.604,24.7187]
[1646644869705,1.6291134,82.663,82.615,0.18636074]
[1646644869907,47.55187081,82.662,82.615,0.18636074]
[1646644870108,18.1661,82.66,82.615,0.18636074]
[1646644870308,1.6291134,82.658,82.615,0.18636074]
[1646644870709,1.6291134,82.657,82.615,0.18636074]
[1646644870912,1.6291134,82.653,82.615,0.18636074]
[1646644871910,18.1683,82.65,82.615,0.18636074]
[1646644872511,19.7974134,82.65,82.615,0.18636074]
[1646644873112,52.13328029,82.649,82.615,0.18636074]
[1646644875213,23.92270264,82.648,82.615,0.18636074]
[1646644893552,23.92270264,82.648,82.567,1.4127749]
[1646644893553,152.75669796,82.647,82.567,1.4127749]
[1646644893753,0.44382995,82.637,82.568,4.6372251]
[1646644893955,7.6821134,82.636,82.567,1.4127749]
[1646644894155,18.1738,82.63,82.567,1.4127749]
[1646644894355,6.053,82.629,82.567,1.4127749]
[1646644894756,23.92270264,82.628,82.567,1.4127749]
[1646644894959,6.053,82.627,82.567,1.4127749]
[1646644896257,6.053,82.629,82.567,1.4127749]
[1646644897661,18.1738,82.63,82.567,1.4127749]
[1646644898260,6.053,82.629,82.567,1.4127749]
[1646644899160,23.92270264,82.628,82.567,1.4127749]
[1646644899361,6.053,82.627,82.567,1.4127749]
[1646644900265,23.92270264,82.626,82.567,1.4127749]
[1646644900464,6.053,82.625,82.567,1.4127749]
[1646644901164,23.2143,82.624,82.567,1.4127749]
[1646644901365,6.053,82.623,82.567,1.4127749]
[1646644902068,61.0056944,82.622,82.567,1.4127749]
[1646644902268,6.053,82.621,82.567,1.4127749]
[1646644903969,18.1747,82.62,82.552,6.053]
[1646644904168,6.054,82.619,82.539,24.4698]
[1646644904369,1.6291134,82.616,82.539,24.4698]
[1646644904569,1.6291134,82.607,82.522,6.054]
[1646644904771,6.52531908,82.615,82.521,18.4158]
[1646644904772,120.4,82.605,82.521,18.4158]
[1646644904971,1.6291134,82.595,82.476,58.06155698]
[1646644905171,18.1886,82.57,82.471,76.3447]
[1646644905370,0.57269996,82.569,82.471,76.3447]
[1646644905570,75.38609593,82.569,82.471,76.3447]
[1646644905770,6.059,82.568,82.472,6.059]
[1646644905970,0.57269996,82.567,82.472,6.059]
[1646644906276,120.97269996,82.565,82.472,6.059]
[1646644906472,0.57269996,82.558,82.471,6.059]
[1646644906673,120.97269996,82.556,82.467,6.059]
[1646644906872,0.57269996,82.553,82.467,6.059]
[1646644907072,120.4,82.551,82.467,6.059]
[1646644907275,59.50558954,82.55,82.467,6.059]
[1646644907472,86.78428551,82.55,82.467,6.059]
[1646644907873,27.27869597,82.549,82.467,6.059]
[1646644908075,6.63169996,82.548,82.467,6.059]
[1646644908373,18.1925,82.54,82.467,6.059]
[1646644908573,120.4,82.547,82.429,138.9473]
[1646644908574,120.57383844,82.538,82.436,6.059]
[1646644908774,120.57383844,82.538,82.429,18.5473]
[1646644908775,0.21149343,82.535,82.43,6.059]
[1646644908994,6.059,82.537,82.43,6.059]
[1646644909174,27.27869597,82.537,82.43,6.059]
[1646644909376,0.2401046,82.533,82.432,49.34266763]
[1646644909575,6.059,82.532,82.433,6.059]
[1646644909776,18.1954,82.53,82.433,6.059]
[1646644910075,6.059,82.529,82.446,120.4]
[1646644910274,6.059,82.529,82.445,59.97886233]
[1646644910275,27.27869597,82.529,82.445,59.97886233]
[1646644910675,6.059,82.528,82.445,59.97886233]
[1646644911073,27.27869597,82.527,82.433,6.059]
[1646644911275,6.059,82.526,82.433,6.059]
[1646644911679,27.27869597,82.525,82.434,120.4]
[1646644911879,6.059,82.524,82.436,120.4]
[1646644912179,64.70147495,82.523,82.454,56.12139949]
[1646644912383,6.061,82.522,82.454,56.12139949]
[1646644912581,33.33969597,82.522,82.44,120.4]
[1646644913179,27.27869597,82.521,82.441,6.062]
[1646644913380,6.062,82.52,82.433,6.062]
[1646644913580,6.062,82.52,82.434,63.4708371]
[1646644913783,27.27869597,82.519,82.435,6.062]
[1646644913981,6.062,82.518,82.435,6.062]
[1646644914182,6.062,82.522,82.435,6.062]
[1646644915183,2.83613526,82.521,82.435,6.062]
[1646644915383,6.062,82.52,82.434,63.4708371]
[1646644915784,6.062,82.52,82.435,120.4]
[1646644915983,6.062,82.52,82.437,120.4]
[1646644916182,6.062,82.521,82.437,120.4]
[1646644916384,6.062,82.521,82.439,120.4]
[1646644916683,6.062,82.521,82.441,120.4]
[1646644916883,6.062,82.521,82.443,120.4]
[1646644917082,6.062,82.521,82.445,120.4]
[1646644917283,6.062,82.521,82.447,120.4]
[1646644917488,6.062,82.521,82.449,120.4]
[1646644917682,6.062,82.521,82.45,6.061]
[1646644918482,6.062,82.521,82.451,120.4]
[1646644918882,6.061,82.522,82.451,120.4]
[1646644920483,64.70147495,82.523,82.453,120.4]
[1646644920885,6.061,82.539,82.461,120.4]
[1646644921084,6.061,82.539,82.47,14.68]
[1646644921288,22.8934,82.545,82.471,126.459]
[1646644921884,47.24087726,82.544,82.473,120.4]
[1646644922485,6.059,82.558,82.481,120.4]
[1646644922688,22.5585,82.575,82.481,120.4]
[1646644923386,53.41327689,82.558,82.481,120.4]
[1646644923887,53.41327689,82.558,82.493,120.4]
[1646644925190,53.41327689,82.558,82.51,18.1777]
[1646644925389,6.058,82.581,82.512,120.4]
[1646644925589,24.885,82.582,82.512,120.4]
[1646644925888,29.1886,82.598,82.512,120.4]
[1646644925889,6.057,82.598,82.512,120.4]
[1646644926089,6.056,82.615,82.512,120.4]
[1646644926288,6.056,82.615,82.511,47.20809417]
[1646644926289,49.66475026,82.613,82.514,120.4]
[1646644926488,6.055,82.612,82.514,120.4]
[1646644927089,6.055,82.612,82.52,18.1746]
[1646644930594,6.055,82.612,82.521,120.4]
[1646644930795,6.055,82.612,82.54,18.1711]
[1646644930992,6.055,82.612,82.541,59.38532765]
[1646644932693,6.055,82.612,82.521,120.4]
[1646644933593,18.1769,82.61,82.5,18.1788]
[1646644933793,6.45497245,82.609,82.48,14.68]
[1646644933994,31.14722101,82.609,82.442,66.45463315]
[1646644934193,5.87027113,82.607,82.48,14.68]
[1646644934393,0.39897245,82.604,82.47,14.68]
[1646644934594,18.1841,82.59,82.47,14.68]
[1646644934796,50.39632552,82.588,82.495,51.85888849]
[1646644934995,0.39897245,82.586,82.495,51.85888849]
[1646644935195,0.39897245,82.584,82.47,32.8662]
[1646644935397,0.39897245,82.582,82.47,32.8662]
[1646644935698,0.39897245,82.582,82.479,138.4254]
[1646644935897,6.057,82.581,82.479,138.4254]
[1646644936099,18.1866,82.57,82.481,120.4]
[1646644936298,53.26774995,82.569,82.493,54.54934066]
[1646644936897,53.26774995,82.569,82.494,23.7611]
[1646644937097,27.28161984,82.568,82.494,23.7611]
[1646644937698,6.058,82.567,82.494,23.7611]
[1646644938100,27.28161984,82.566,82.494,23.7611]
[1646644938303,6.058,82.565,82.494,23.7611]
[1646644938901,6.058,82.565,82.502,120.4]
[1646644939102,53.26774995,82.569,82.502,120.4]
[1646644941006,53.26774995,82.569,82.511,120.4]
[1646644941205,53.26774995,82.569,82.512,54.76841476]
[1646644941408,53.26774995,82.569,82.513,120.4]
[1646644941605,53.26774995,82.569,82.512,54.76841476]
[1646644942807,53.26774995,82.569,82.51,18.1773]
[1646644943009,53.26774995,82.569,82.502,6.057]
[1646644943208,33.33861984,82.568,82.501,24.0929]
[1646644943411,58.0308684,82.568,82.501,24.0929]
[1646644943608,27.28161984,82.567,82.501,24.0929]
[1646644943807,6.058,82.566,82.501,24.0929]
[1646644944208,18.1883,82.56,82.501,24.0929]
[1646644944408,18.1883,82.56,82.477,6.058]
[1646644944608,27.28161984,82.559,82.478,23.7838]
[1646644944809,27.28161984,82.559,82.479,6.058]
[1646644945010,6.058,82.558,82.478,23.7838]
[1646644945509,6.058,82.558,82.489,63.85325421]
[1646644945711,6.058,82.566,82.489,63.85325421]
[1646644945912,6.058,82.566,82.489,184.25325421]
[1646644946109,6.058,82.566,82.489,63.85325421]
[1646644946410,22.8019,82.567,82.489,63.85325421]
[1646644948129,22.8019,82.567,82.489,184.25325421]
[1646644948331,6.058,82.566,82.489,184.25325421]
[1646644948532,6.058,82.566,82.489,63.85325421]
[1646644949130,6.058,82.566,82.489,184.25325421]
[1646644949330,6.058,82.566,82.489,63.85325421]
[1646644950230,6.058,82.566,82.489,184.25325421]
[1646644950631,6.058,82.566,82.495,120.4]
[1646644951235,28.8599,82.567,82.495,120.4]
[1646644952835,53.59791019,82.567,82.49,6.058]
[1646644954731,30.79601019,82.567,82.495,120.4]
[1646644954932,6.058,82.567,82.501,120.4]
[1646644955133,1.6291134,82.595,82.503,120.4]
[1646644955334,1.6291134,82.596,82.503,120.4]
[1646644955735,1.6291134,82.596,82.51,18.176]
[1646644955936,1.6291134,82.597,82.511,120.4]
[1646644956336,1.6291134,82.598,82.511,120.4]
[1646644956534,6.057,82.597,82.511,120.4]
[1646644957238,7.6861134,82.598,82.511,120.4]
[1646644957536,1.6291134,82.596,82.511,120.4]
[1646644957735,6.057,82.595,82.511,120.4]
[1646644957936,6.057,82.595,82.521,120.4]
[1646644958138,6.056,82.596,82.523,120.4]
[1646644958535,23.6786,82.597,82.523,120.4]
[1646644958736,23.2829,82.607,82.523,120.4]
[1646644958940,51.88675923,82.606,82.525,120.4]
[1646644959135,51.88675923,82.606,82.541,120.4]
[1646644959338,51.88675923,82.606,82.543,120.4]
[1646644960038,6.055,82.605,82.543,120.4]
[1646644960439,51.88675923,82.606,82.543,120.4]
[1646644961140,51.88675923,82.606,82.551,120.4]
[1646644962945,6.054,82.627,82.551,120.4]
[1646644963147,7.6831134,82.629,82.551,143.265]
[1646644963544,22.7615,82.648,82.551,143.265]
[1646644963545,1.6291134,82.632,82.551,143.265]
[1646644963745,6.053,82.631,82.551,143.265]
[1646644963948,55.7928696,82.63,82.551,143.265]
[1646644965952,6.053,82.629,82.551,143.265]
[1646644966955,30.79101019,82.629,82.551,143.265]
[1646644969157,6.053,82.629,82.551,143.265]
[1646644970158,55.7928696,82.63,82.551,143.265]
[1646644970762,55.7928696,82.63,82.563,120.4]
[1646644973862,6.053,82.629,82.563,120.4]
[1646644974060,6.053,82.629,82.562,58.10918628]
[1646644974463,6.053,82.629,82.563,120.4]
[1646644976166,55.7928696,82.63,82.563,120.4]
[1646644977166,6.053,82.629,82.563,120.4]
[1646644979266,55.7928696,82.63,82.563,120.4]
[1646644979868,55.7928696,82.63,82.565,0.18732771]
[1646644981990,1.6291134,82.629,82.565,0.18732771]
[1646644982190,57.421983,82.63,82.565,0.18732771]
[1646644982388,7.6821134,82.629,82.565,0.18732771]
[1646644982589,7.6821134,82.629,82.566,120.4]
[1646644983191,1.6291134,82.628,82.566,120.4]
[1646644983391,6.053,82.627,82.566,120.4]
[1646644983591,7.6821134,82.628,82.566,120.4]
[1646644983790,1.6291134,82.62,82.566,120.4]
[1646644984891,1.6291134,82.621,82.566,120.4]
[1646644986192,1.6291134,82.62,82.566,120.4]
[1646644986794,1.6291134,82.616,82.566,120.4]
[1646644986993,47.09302012,82.615,82.566,120.4]
[1646644987195,48.72213352,82.615,82.566,120.4]
[1646644987792,47.09302012,82.615,82.566,120.4]
[1646644988595,1.6291134,82.617,82.566,120.4]
[1646644988796,1.6291134,82.618,82.566,120.4]
[1646644989799,1.6291134,82.619,82.566,120.4]
[1646644989997,24.6392134,82.619,82.566,120.4]
[1646644990196,1.6291134,82.618,82.566,120.4]
[1646644990397,24.6392134,82.619,82.566,120.4]
[1646644990899,1.6291134,82.617,82.566,120.4]
[1646644991901,1.6291134,82.618,82.566,120.4]
[1646644992099,1.6291134,82.617,82.566,120.4]
[1646644993200,1.6291134,82.618,82.566,120.4]
[1646644993701,1.6291134,82.617,82.566,120.4]
[1646644994300,1.6291134,82.618,82.566,120.4]
[1646644994700,1.6291134,82.617,82.566,120.4]
[1646644995099,1.6291134,82.618,82.566,120.4]
[1646644995298,24.6392134,82.619,82.566,120.4]
[1646644996199,1.6291134,82.618,82.566,120.4]
[1646644996402,23.0101,82.619,82.566,120.4]
[1646644996800,1.6291134,82.618,82.566,120.4]
[1646644997703,24.6392134,82.619,82.566,120.4]
[1646644997903,1.6291134,82.618,82.566,120.4]
[1646644998403,24.6392134,82.619,82.566,120.4]
[1646644999108,23.0101,82.619,82.566,120.4]
[1646644999307,24.6392134,82.619,82.566,120.4]
[1646645000108,23.0101,82.619,82.566,120.4]
[1646645000911,23.0101,82.619,82.571,120.4]
[1646645005511,23.0101,82.619,82.565,17.7082]
[1646645005710,23.0101,82.619,82.561,24.3998]
[1646645005911,0.28533209,82.615,82.561,24.3998]
[1646645006111,1.91444549,82.615,82.561,24.3998]
[1646645006412,0.28533209,82.613,82.561,24.3998]
[1646645006611,51.71338362,82.612,82.561,24.3998]
[1646645006812,53.34249702,82.612,82.561,24.3998]
[1646645007214,51.71338362,82.612,82.561,24.3998]
[1646645012828,6.054,82.611,82.561,24.3998]
[1646645013829,51.71338362,82.612,82.561,24.3998]
[1646645014444,51.71338362,82.612,82.564,120.4]
[1646645014944,51.71338362,82.612,82.563,63.49774592]
[1646645016646,51.71338362,82.612,82.561,24.3998]
[1646645016846,51.71338362,82.612,82.562,120.4]
[1646645017246,51.71338362,82.612,82.561,24.3998]
[1646645017446,1.6291134,82.618,82.562,120.4]
[1646645017647,24.6392134,82.619,82.561,24.3998]
[1646645017854,23.0101,82.619,82.561,24.3998]
[1646645018251,24.6392134,82.619,82.561,24.3998]
[1646645018448,68.85439303,82.618,82.562,46.20398827]
[1646645019549,62.80039303,82.618,82.562,46.20398827]
[1646645020155,62.80039303,82.618,82.561,24.3998]
[1646645020349,64.42950643,82.618,82.561,24.3998]
[1646645020551,1.6291134,82.615,82.561,24.3998]
[1646645020949,1.6291134,82.614,82.561,24.3998]
[1646645021250,1.6291134,82.613,82.561,24.3998]
[1646645021452,1.6291134,82.612,82.561,24.3998]
[1646645023152,6.054,82.617,82.561,24.3998]
[1646645023153,1.6291134,82.613,82.561,24.3998]
[1646645024551,1.6291134,82.612,82.561,24.3998]
[1646645024753,1.6291134,82.613,82.561,24.3998]
[1646645024952,1.6291134,82.612,82.561,24.3998]
[1646645025152,6.054,82.617,82.561,24.3998]
[1646645025551,62.80039303,82.618,82.561,24.3998]
[1646645028155,62.80039303,82.618,82.562,120.4]
[1646645029657,62.80039303,82.618,82.561,24.3998]
[1646645034366,64.42950643,82.618,82.562,120.4]
[1646645034767,62.80039303,82.618,82.561,24.3998]
[1646645034968,62.80039303,82.618,82.562,120.4]
[1646645035168,6.054,82.617,82.561,24.3998]
[1646645036370,1.6291134,82.616,82.561,24.3998]
[1646645037570,7.6831134,82.617,82.561,24.3998]
[1646645038170,1.6291134,82.616,82.561,24.3998]
[1646645038371,1.6291134,82.613,82.561,24.3998]
[1646645039471,1.6291134,82.614,82.561,24.3998]
[1646645040071,1.6291134,82.613,82.561,24.3998]
[1646645040270,1.6291134,82.614,82.561,24.3998]
[1646645040472,1.6291134,82.613,82.561,24.3998]
[1646645040975,1.6291134,82.613,82.51,183.56]
[1646645040976,1.6291134,82.613,82.54,14.68]
[1646645041172,1.6291134,82.601,82.532,18.5845]
[1646645041379,26.60657259,82.612,82.532,18.5845]
[1646645041380,1.6291134,82.599,82.532,18.5845]
[1646645041775,0.31934286,82.597,82.522,40.606]
[1646645042079,55.1068742,82.597,82.523,89.56394543]
[1646645042375,56.7359876,82.597,82.524,120.4]
[1646645042575,24.9036,82.596,82.524,145.79022178]
[1646645042776,24.9036,82.596,82.526,120.4]
[1646645043983,24.9036,82.596,82.53,14.68]
[1646645044382,6.055,82.595,82.53,14.68]
[1646645044783,6.055,82.595,82.523,64.17372365]
[1646645046487,6.055,82.595,82.512,43.11862178]
[1646645046683,6.055,82.595,82.511,24.809]
[1646645046684,0.17746119,82.591,82.511,24.809]
[1646645046882,0.19550937,82.588,82.511,24.809]
[1646645047086,7.6851134,82.587,82.511,24.809]
[1646645047484,26.28722973,82.586,82.512,61.15080191]
[1646645047685,58.32061843,82.584,82.512,61.15080191]
[1646645047887,6.057,82.583,82.511,24.809]
[1646645048085,18.1842,82.58,82.511,24.809]
[1646645048288,6.057,82.579,82.511,24.809]
[1646645048684,7.6861134,82.579,82.511,24.809]
[1646645048885,146.95322927,82.578,82.49,24.2592]
[1646645049091,0.33578867,82.575,82.49,24.2592]
[1646645049285,0.33578867,82.573,82.49,24.2592]
[1646645049485,1.6291134,82.567,82.49,24.2592]
[1646645049686,0.33578867,82.565,82.49,24.2592]
[1646645050085,120.4,82.559,82.49,6.058]
[1646645050286,0.34265751,82.557,82.49,6.058]
[1646645050491,23.70775751,82.557,82.49,6.058]
[1646645050692,0.34265751,82.555,82.49,6.058]
[1646645050888,0.34265751,82.553,82.49,6.058]
[1646645051089,18.1917,82.55,82.49,6.058]
[1646645051289,57.00505757,82.548,82.49,6.058]
[1646645051489,0.34265751,82.546,82.49,6.058]
[1646645051692,23.70775751,82.546,82.49,6.058]
[1646645051891,6.059,82.545,82.49,6.058]
[1646645052092,0.16220533,82.544,82.49,6.058]
[1646645052393,6.059,82.543,82.49,6.058]
[1646645052594,6.059,82.545,82.49,6.058]
[1646645052795,23.3651,82.546,82.49,6.058]
[1646645052993,6.059,82.545,82.49,6.058]
[1646645053194,6.059,82.545,82.479,58.32780003]
[1646645060318,23.3651,82.546,82.479,58.32780003]
[1646645060319,23.3651,82.546,82.48,32.8638]
[1646645060519,23.3651,82.546,82.481,120.4]
[1646645060918,23.3651,82.546,82.483,120.4]
[1646645061320,23.3651,82.546,82.485,120.4]
[1646645061521,23.3651,82.546,82.487,120.4]
[1646645061719,23.3651,82.546,82.491,120.4]
[1646645061921,23.3651,82.546,82.493,120.4]
[1646645062119,23.3651,82.546,82.5,18.1799]
[1646645063219,23.3651,82.546,82.501,120.4]
[1646645070326,23.3651,82.546,82.5,32.8599]
[1646645070526,23.3651,82.546,82.485,6.058]
[1646645071726,23.3651,82.546,82.486,120.4]
[1646645072226,23.3651,82.546,82.485,6.058]
[1646645072626,6.059,82.545,82.485,6.058]
[1646645072827,23.3651,82.546,82.485,6.058]
[1646645073028,6.059,82.545,82.485,6.058]
[1646645074228,23.3651,82.546,82.485,6.058]
[1646645076130,6.059,82.545,82.461,24.0559]
[1646645076330,18.1929,82.54,82.461,24.0559]
[1646645076934,6.059,82.539,82.462,23.2767]
[1646645077831,6.059,82.543,82.462,23.2767]
[1646645078633,6.059,82.545,82.462,23.2767]
[1646645079033,23.3651,82.546,82.462,23.2767]
[1646645080235,6.059,82.545,82.462,23.2767]
[1646645081335,6.059,82.545,82.463,120.4]
[1646645082935,6.059,82.545,82.462,23.2767]
[1646645084035,23.1013,82.544,82.462,23.2767]
[1646645084239,6.059,82.543,82.462,23.2767]
[1646645084840,6.059,82.543,82.463,53.63277416]
[1646645091969,6.059,82.543,82.47,18.1863]
[1646645093370,6.059,82.543,82.535,0.18724693]
[1646645102488,23.1013,82.544,82.535,0.18724693]
[1646645103494,1.6291134,82.556,82.535,0.18724693]
[1646645103697,24.5223134,82.567,82.535,0.18724693]
[1646645103894,22.8932,82.567,82.535,0.18724693]
[1646645104498,24.5223134,82.567,82.535,0.18724693]
[1646645104900,6.057,82.566,82.535,0.18724693]
[1646645105800,24.19223639,82.564,82.535,0.18724693]
[1646645106003,6.057,82.556,82.535,0.18724693]
[1646645106399,24.2513,82.555,82.535,0.18724693]
[1646645106600,6.057,82.554,82.535,0.18724693]
[1646645108718,24.2513,82.555,82.535,0.18724693]
[1646645111521,6.057,82.554,82.535,0.18724693]
[1646645112622,24.2513,82.555,82.535,0.18724693]
[1646645118428,6.057,82.554,82.535,0.18724693]
[1646645120033,30.24923639,82.554,82.535,0.18724693]
[1646645121534,6.057,82.554,82.535,0.18724693]
[1646645122336,24.2513,82.555,82.535,0.18724693]
[1646645126139,0.1944131,82.549,82.535,0.18724693]
[1646645126338,6.057,82.548,82.535,0.18724693]
[1646645126537,6.057,82.549,82.535,0.18724693]
[1646645126737,6.057,82.549,82.535,0.00724693]
[1646645126938,144.59223639,82.548,82.535,0.00724693]
[1646645127140,120.4,82.546,82.535,0.00724693]
[1646645127338,0.29461758,82.539,82.535,0.00724693]
[1646645127538,0.29461758,82.544,82.535,0.00724693]
[1646645127738,6.057,82.543,82.535,0.00724693]
[1646645127939,25.14556973,82.538,82.535,0.00724693]
[1646645128140,6.057,82.537,82.535,0.00724693]
[1646645128343,1.64191385,82.536,82.535,0.00724693]
[1646645128640,32.84448358,82.536,82.535,0.00724693]
[1646645129040,31.20256973,82.536,82.535,0.00724693]
[1646645133645,25.14556973,82.536,82.535,0.00724693]
[1646645135950,31.20256973,82.536,82.535,0.00724693]
[1646645136447,49.7919569,82.545,82.535,0.00724693]
[1646645136653,48.1514,82.545,82.535,0.00724693]
[1646645137250,24.843,82.545,82.535,0.00724693]
[1646645138251,25.14539639,82.544,82.535,0.00724693]
[1646645138454,31.20239639,82.544,82.535,0.00724693]
[1646645139050,31.20239639,82.543,82.535,0.00724693]
[1646645139452,6.057,82.543,82.535,0.00724693]
[1646645139653,6.057,82.544,82.535,0.00724693]
[1646645140354,24.843,82.545,82.535,0.00724693]
[1646645143482,120.4,82.543,82.535,0.00724693]
[1646645143682,0.24302683,82.54,82.535,0.00724693]
[1646645143880,0.34969281,82.537,82.535,0.00724693]
[1646645144080,126.457,82.536,82.535,0.00724693]
[1646645144681,151.60239639,82.536,82.535,0.00724693]
[1646645144882,0.01275307,82.532,82.441,30.7102]
[1646645145083,18.1971,82.52,82.441,30.7102]
[1646645145281,30.1994,82.519,82.441,30.7102]
[1646645145883,58.41841273,82.518,82.442,57.03218456]
[1646645146087,58.41841273,82.518,82.443,6.062]
[1646645147084,0.01275307,82.532,82.451,120.4]
[1646645147284,0.01275307,82.532,82.453,120.4]
[1646645147483,0.01275307,82.532,82.458,0.11141474]
[1646645147687,0.01275307,82.532,82.471,120.4]
[1646645147885,0.01275307,82.532,82.472,47.2805]
[1646645148084,0.01275307,82.532,82.473,46.59011962]
[1646645148285,18.1962,82.53,82.473,46.59011962]
[1646645148485,61.40975617,82.528,82.473,46.59011962]
[1646645148786,6.059,82.527,82.473,46.59011962]
[1646645148986,61.40975617,82.528,82.473,46.59011962]
[1646645149587,61.40975617,82.528,82.472,47.2805]
[1646645149788,6.059,82.527,82.472,47.2805]
[1646645150587,6.059,82.527,82.473,54.07544755]
[1646645151187,6.059,82.527,82.472,47.2805]
[1646645152191,6.059,82.527,82.473,56.77431318]
[1646645153590,61.40975617,82.528,82.44,36.6641]
[1646645153890,120.4,82.527,82.441,23.8999]
[1646645154389,126.461,82.526,82.441,23.8999]
[1646645154590,126.461,82.526,82.442,49.60700947]
[1646645154790,1.64085121,82.524,82.442,49.60700947]
[1646645154990,6.061,82.523,82.442,49.60700947]
[1646645155194,7.70185121,82.524,82.442,49.60700947]
[1646645155390,120.4,82.523,82.442,49.60700947]
[1646645155591,6.061,82.522,82.442,49.60700947]
[1646645155792,18.1979,82.52,82.442,49.60700947]
[1646645155992,6.062,82.519,82.442,49.60700947]
[1646645156190,24.081,82.518,82.442,49.60700947]
[1646645156390,6.062,82.517,82.442,49.60700947]
[1646645157391,120.4,82.516,82.442,49.60700947]
[1646645157590,18.1996,82.51,82.441,23.8999]
[1646645157791,126.462,82.509,82.441,23.8999]
[1646645157991,5.61843907,82.508,82.433,6.059]
[1646645158192,1.64085121,82.505,82.433,6.059]
[1646645158392,1.64085121,82.5,82.433,6.059]
[1646645158590,120.4,82.489,82.433,6.059]
[1646645158790,4.60710937,82.497,82.433,6.059]
[1646645158791,120.4,82.487,82.433,6.059]
[1646645158994,0.36144277,82.486,82.433,6.059]
[1646645159192,120.4,82.485,82.433,6.059]
[1646645159392,0.36144277,82.483,82.433,6.059]
[1646645159592,120.4,82.485,82.433,6.059]
[1646645159593,6.063,82.482,82.433,6.059]
[1646645159790,120.4,82.481,82.433,6.059]
[1646645159990,120.4,82.479,82.433,6.059]
[1646645160192,6.063,82.48,82.405,1.6339174]
[1646645160392,0.36144277,82.476,82.405,1.6339174]
[1646645160592,23.7875,82.478,82.405,1.6339174]
[1646645160992,6.064,82.477,82.405,1.6339174]
[1646645161392,120.4,82.476,82.405,1.6339174]
[1646645161592,120.4,82.474,82.405,1.6339174]
[1646645161893,6.064,82.475,82.405,1.6339174]
[1646645162092,18.2084,82.47,82.405,1.6339174]
[1646645162292,6.065,82.469,82.405,1.6339174]
[1646645162492,47.60857944,82.468,82.405,1.6339174]
[1646645162793,6.065,82.467,82.405,1.6339174]
[1646645163092,57.9118888,82.467,82.405,1.6339174]
[1646645163293,18.2111,82.46,82.405,1.6339174]
[1646645163495,126.82644277,82.459,82.405,1.6339174]
[1646645163695,153.93043157,82.459,82.405,1.6339174]
[1646645163894,27.1039888,82.458,82.405,1.6339174]
[1646645164096,126.465,82.457,82.405,1.6339174]
[1646645164696,149.1905,82.457,82.405,1.6339174]
[1646645164896,176.2944888,82.457,82.405,1.6339174]
[1646645165096,18.2135,82.45,82.405,1.6339174]
[1646645165298,6.065,82.449,82.405,1.6339174]
[1646645165696,22.7255,82.457,82.4,50.0]
[1646645165900,6.065,82.456,82.4,50.0]
[1646645166397,22.7255,82.457,82.4,50.0]
[1646645166798,24.7935,82.487,82.4,50.0]
[1646645167101,22.7255,82.486,82.4,50.0]
[1646645167497,22.7255,82.486,82.402,120.4]
[1646645167698,6.064,82.485,82.402,120.4]
[1646645167901,6.064,82.485,82.401,52.19781284]
[1646645168097,6.064,82.485,82.402,120.4]
[1646645168297,6.064,82.485,82.401,52.19781284]
[1646645168500,59.63267305,82.484,82.401,22.6698]
[1646645168700,6.064,82.483,82.401,22.6698]
[1646645178005,6.32389374,82.482,82.401,22.6698]